bitfinex-derivatives/quotes_BNBF0:USTF0_20251203
["timestamp","ask_amount","ask_price","bid_price","bid_amount"]
[1764788941073,1.09445929,905.18,903.94,1.10501871]
[1764788941272,1.09445929,905.18,903.93,1.10501871]
[1764788942174,1.09445929,905.18,903.94,1.10501871]
[1764788943976,1.09445929,905.15,903.91,1.10501871]
[1764788944378,1.09445929,905.14,903.9,1.10501871]
[1764788944673,1.09445929,905.15,903.91,1.10501871]
[1764788946178,1.09445929,905.15,903.92,1.427]
[1764788947174,1.09445929,905.18,903.95,1.10501871]
[1764788947377,1.09445929,905.19,903.95,1.10501871]
[1764788948376,1.09445929,905.19,903.94,1.10501871]
[1764788949175,1.09445929,905.19,903.95,1.10501871]
[1764788949479,1.09445929,905.19,903.94,1.10501871]
[1764788956379,1.09445929,905.14,903.92,1.427]
[1764788958186,1.09445929,905.13,903.92,1.427]
[1764788962189,1.09445929,905.12,903.92,1.427]
[1764788964288,1.09445929,905.12,903.91,1.10501871]
[1764788965191,1.09445929,905.11,903.92,1.10501871]
[1764788966188,1.09445929,905.11,903.93,1.082]
[1764788967590,1.09445929,905.11,903.94,1.132]
[1764788968294,1.09445929,905.1,903.94,1.132]
[1764788968892,1.09445929,905.07,903.94,1.132]
[1764788971198,1.09445929,905.06,903.94,1.132]
[1764788973201,1.09445929,905.05,903.94,1.132]
[1764788974403,1.09445929,905.04,903.94,1.132]
[1764788975203,1.09445929,905.03,903.94,2.23701871]
[1764788976303,1.09445929,905.02,903.95,1.10501871]
[1764788977204,1.09445929,905.01,903.96,1.10501871]
[1764788978202,1.09445929,905.0,903.98,1.10501871]
[1764788978501,1.09445929,904.99,903.98,1.10501871]
[1764788979205,1.09445929,904.98,903.99,1.10501871]
[1764788979808,5.89952757,905.21,903.94,1.132]
[1764788979809,1.09445929,905.03,904.04,1.10501871]
[1764788980309,1.09445929,905.03,904.05,1.10501871]
[1764788981408,1.09445929,905.03,903.94,1.132]
[1764788981409,1.09445929,905.02,904.06,1.10501871]
[1764788982204,1.09445929,905.01,904.07,1.10501871]
[1764788983409,1.09445929,905.0,904.07,1.10501871]
[1764788984304,1.09445929,905.0,904.08,1.10501871]
[1764788988211,1.09445929,905.0,904.09,1.10501871]
[1764788988415,1.09445929,905.0,904.08,1.10501871]
[1764788989315,1.09445929,905.0,904.09,1.10501871]
[1764788990218,1.09445929,904.99,904.09,1.10501871]
[1764788994625,1.09445929,904.99,904.1,1.465]
[1764789001726,1.09445929,904.9,904.1,2.57001871]
[1764789002030,1.09445929,904.9,904.1,1.465]
[1764789002528,1.09445929,904.87,904.1,1.465]
[1764789002732,1.09445929,904.86,904.1,1.465]
[1764789004333,1.09445929,904.87,904.1,1.465]
[1764789005434,1.09445929,904.88,904.1,1.465]
[1764789007036,1.09445929,904.84,904.11,1.315]
[1764789007435,1.09445929,904.85,904.11,1.315]
[1764789008438,1.09445929,904.86,904.11,1.315]
[1764789011441,1.09445929,904.87,904.11,1.315]
[1764789013946,1.09445929,904.95,904.11,1.315]
[1764789014342,1.09445929,904.94,904.11,1.315]
[1764789015248,1.09445929,904.96,904.11,1.315]
[1764789016551,1.09445929,904.95,904.11,1.315]
[1764789016947,1.09445929,904.94,904.11,1.315]
[1764789022051,1.64168893,905.1,904.11,1.315]
[1764789022052,1.09445929,904.93,904.11,1.315]
[1764789022254,1.09445929,904.91,904.11,1.315]
[1764789023453,1.09445929,904.9,904.11,1.315]
[1764789023655,1.09445929,904.84,904.11,1.315]
[1764789024457,1.09445929,904.85,904.11,1.315]
[1764789027762,1.09445929,904.89,904.11,1.315]
[1764789032167,1.09445929,904.88,904.11,1.315]
[1764789032569,1.09445929,904.69,904.11,1.315]
[1764789032775,1.09445929,904.67,904.11,1.315]
[1764789033270,1.09445929,904.66,904.11,1.315]
[1764789033575,1.09445929,904.57,904.11,1.315]
[1764789034170,1.09445929,904.56,903.62,1.396]
[1764789034370,1.09445929,904.55,903.62,1.396]
[1764789034665,1.09445929,904.57,903.62,1.396]
[1764789034869,1.09445929,904.53,903.62,1.396]
[1764789035569,1.09445929,904.55,903.62,1.396]
[1764789036371,1.09445929,904.57,903.62,1.396]
[1764789036970,1.09445929,904.57,903.63,1.743]
[1764789037467,1.09445929,904.56,903.63,1.743]
[1764789038369,1.09445929,904.58,903.63,1.743]
[1764789039475,1.09445929,904.59,903.63,1.743]
[1764789040475,1.09445929,904.61,903.63,1.743]
[1764789041475,1.09445929,904.62,903.63,1.743]
[1764789042477,1.09445929,904.63,903.63,1.743]
[1764789043473,1.09445929,904.64,903.63,1.743]
[1764789044273,1.09445929,904.65,903.63,1.743]
[1764789045578,1.09445929,904.66,903.63,1.743]
[1764789047582,1.09445929,904.67,903.63,1.743]
[1764789048585,1.09445929,904.68,903.63,1.743]
[1764789049481,1.09445929,904.69,903.63,1.743]
[1764789053086,1.09445929,904.7,903.63,1.743]
[1764789056287,1.09445929,904.69,903.63,1.743]
[1764789056488,1.09445929,904.7,903.63,1.743]
[1764789057285,1.09445929,904.69,903.63,1.743]
[1764789061489,1.09445929,904.68,903.63,1.743]
[1764789061689,1.09445929,904.68,903.64,1.287]
[1764789062189,1.09445929,904.67,903.64,1.287]
[1764789062389,1.09445929,904.57,903.64,1.287]
[1764789062590,1.09445929,904.56,903.64,1.287]
[1764789064388,1.09445929,904.57,903.64,1.287]
[1764789065093,1.09445929,904.48,903.64,1.287]
[1764789065293,1.09445929,904.42,903.64,1.287]
[1764789065689,1.09445929,904.41,903.64,1.287]
[1764789065889,1.09445929,904.38,903.64,1.287]
[1764789066293,1.09445929,904.32,903.64,1.287]
[1764789066493,1.09445929,904.3,903.64,1.287]
[1764789067292,1.09445929,904.32,903.64,1.287]
[1764789067893,1.09445929,904.35,903.64,1.287]
[1764789068394,1.09445929,904.36,903.64,1.287]
[1764789070395,1.09445929,904.37,903.64,1.287]
[1764789071195,1.09445929,904.36,903.64,1.287]
[1764789072292,1.09445929,904.37,903.64,1.287]
[1764789074497,1.09445929,904.38,903.64,1.287]
[1764789076401,1.09445929,904.37,903.64,1.287]
[1764789077302,1.09445929,904.38,903.64,1.287]
[1764789077502,1.09445929,904.37,903.64,1.287]
[1764789078602,1.09445929,904.35,903.64,1.287]
[1764789079103,1.09445929,904.27,903.64,1.287]
[1764789081400,1.09445929,904.26,903.64,1.287]
[1764789082905,1.09445929,904.23,903.64,1.287]
[1764789083104,1.09445929,904.2,903.64,1.287]
[1764789083608,1.09445929,904.18,903.64,1.287]
[1764789083908,1.09445929,904.15,903.64,1.287]
[1764789084306,1.09445929,904.15,903.65,1.332]
[1764789086309,1.09445929,904.16,903.65,1.332]
[1764789086610,1.09445929,904.14,903.65,1.332]
[1764789087005,1.09445929,904.11,903.65,1.332]
[1764789088307,1.09445929,904.1,903.65,1.332]
[1764789090613,1.09445929,903.99,903.65,1.332]
[1764789091315,1.09445929,903.98,903.65,1.332]
[1764789091514,1.09445929,903.93,903.65,1.332]
[1764789092518,1.09445929,903.9,903.65,1.332]
[1764789092714,1.09445929,903.79,903.65,1.332]
[1764789092916,9.6311449,903.79,903.65,1.332]
[1764789093413,8.53668561,903.79,903.65,1.332]
[1764789093613,1.09445929,903.78,903.65,1.332]
[1764789094318,1.09445929,903.73,903.65,1.332]
[1764789094618,1.09445929,903.74,903.65,1.332]
[1764789095316,1.09445929,903.76,903.65,1.332]
[1764789095618,1.09445929,903.74,903.65,1.332]
[1764789096318,1.09445929,903.76,903.65,1.332]
[1764789097318,1.09445929,903.77,903.65,1.332]
[1764789098316,1.09445929,903.78,903.65,1.332]
[1764789099417,9.6311449,903.79,903.65,1.332]
[1764789100322,8.53668561,903.79,903.65,1.332]
[1764789103624,1.09445929,903.76,903.65,1.332]
[1764789105325,1.09445929,903.77,902.66,0.19257107]
[1764789107121,1.09445929,903.78,902.66,0.19257107]
[1764789107320,8.53668561,903.79,902.66,0.19257107]
[1764789109225,8.53668561,903.79,902.67,1.498]
[1764789129938,1.09445929,904.09,902.67,1.498]
[1764789130142,1.09445929,904.12,902.67,1.498]
[1764789130343,1.09445929,904.17,902.71,1.10501871]
[1764789131142,1.09445929,904.17,902.72,1.449]
[1764789131439,1.09445929,904.16,902.72,1.449]
[1764789132344,1.09445929,904.16,902.72,2.55401871]
[1764789133145,1.28704741,904.19,902.75,1.10501871]
[1764789133345,1.09445929,904.18,902.75,1.10501871]
[1764789134347,1.09445929,904.18,902.76,1.10501871]
[1764789135341,1.09445929,904.17,902.76,1.10501871]
[1764789136247,1.09445929,904.18,902.76,1.10501871]
[1764789136447,1.09445929,904.17,902.76,1.10501871]
[1764789137347,1.09445929,904.17,902.77,1.10501871]
[1764789138250,1.09445929,904.23,902.82,1.10501871]
[1764789138448,1.09445929,904.23,902.72,1.449]
[1764789138449,1.09445929,904.22,902.83,1.10501871]
[1764789139152,1.09445929,904.23,902.84,1.10501871]
[1764789139350,1.09445929,904.24,902.84,1.10501871]
[1764789140254,1.09445929,904.24,902.83,1.10501871]
[1764789141955,1.09445929,904.26,902.84,1.10501871]
[1764789142150,1.09445929,904.28,902.87,1.10501871]
[1764789142351,0.19253112,904.43,902.72,1.449]
[1764789142352,1.09445929,904.35,902.93,1.10501871]
[1764789142554,1.64168893,904.51,902.72,1.449]
[1764789142555,1.09445929,904.41,902.99,1.10501871]
[1764789143352,1.09445929,904.46,903.01,1.10501871]
[1764789144260,1.09445929,904.46,902.99,1.10501871]
[1764789144957,1.09445929,904.46,902.98,1.10501871]
[1764789145255,1.09445929,904.47,902.97,1.10501871]
[1764789145455,1.09445929,904.48,902.97,1.10501871]
[1764789145851,1.09445929,904.26,902.75,1.10501871]
[1764789146256,1.09445929,904.1,902.72,1.449]
[1764789146557,0.65664499,904.09,902.72,1.449]
[1764789146752,0.65664499,904.08,902.72,1.449]
[1764789146952,0.65664499,904.07,902.72,1.449]
[1764789147155,0.65664499,904.06,902.72,1.449]
[1764789147357,0.65664499,904.05,902.72,1.449]
[1764789147657,0.65664499,904.04,902.72,1.449]
[1764789147854,0.65664499,904.03,902.72,1.449]
[1764789148058,0.65664499,904.02,902.72,1.449]
[1764789148258,0.65664499,904.01,902.72,1.449]
[1764789148460,0.65664499,904.0,902.72,1.449]
[1764789148657,0.65664499,903.99,902.72,1.449]
[1764789148958,0.65664499,903.98,902.72,1.449]
[1764789149158,0.65664499,903.97,902.72,1.449]
[1764789149458,0.65664499,903.96,902.72,1.449]
[1764789149659,0.65664499,903.95,902.72,1.449]
[1764789149860,0.65664499,903.94,902.72,1.449]
[1764789150153,0.65664499,903.93,902.72,1.449]
[1764789150358,0.65664499,903.92,902.72,1.449]
[1764789150559,0.65664499,903.91,902.72,1.449]
[1764789150759,0.65664499,903.9,902.72,1.449]
[1764789151059,0.65664499,903.89,902.72,1.449]
[1764789151256,0.65664499,903.88,902.72,1.449]
[1764789151460,0.65664499,903.87,902.72,1.449]
[1764789151661,0.65664499,903.86,902.72,1.449]
[1764789151855,0.65664499,903.85,902.72,1.449]
[1764789152059,0.65664499,903.84,902.72,1.449]
[1764789152260,0.65664499,903.83,902.72,1.449]
[1764789152556,8.61843769,904.28,902.72,1.449]
[1764789152761,0.65663792,904.27,902.72,1.449]
[1764789152956,0.65663792,904.26,902.72,1.449]
[1764789153160,0.65663792,904.25,902.72,1.449]
[1764789153360,0.65663792,904.24,902.72,1.449]
[1764789153557,0.65663792,904.23,902.72,1.449]
[1764789153763,0.65663792,904.22,902.72,1.449]
[1764789153964,0.65663792,904.21,902.73,1.707]
[1764789154162,0.65663792,904.2,902.73,1.707]
[1764789154355,1.09445929,904.72,902.73,1.707]
[1764789154560,0.65651378,904.71,902.73,1.707]
[1764789154761,0.65651378,904.7,902.73,1.707]
[1764789154956,0.65651378,904.69,902.73,1.707]
[1764789155160,0.65651378,904.68,902.73,1.707]
[1764789155457,0.65651378,904.67,902.73,1.707]
[1764789155757,0.65651378,904.66,902.73,1.707]
[1764789155960,0.65651378,904.65,902.73,1.707]
[1764789156263,0.65651378,904.64,902.73,1.707]
[1764789156461,0.65651378,904.63,902.73,1.707]
[1764789156662,0.65651378,904.62,902.73,1.707]
[1764789156856,0.65651378,904.61,902.73,1.707]
[1764789157061,0.65651378,904.6,902.73,1.707]
[1764789157258,0.65651378,904.59,902.73,1.707]
[1764789157461,0.65651378,904.58,902.73,1.707]
[1764789157658,0.65651378,904.57,902.73,1.707]
[1764789157862,0.65651378,904.56,902.73,1.707]
[1764789158060,0.65651378,904.55,902.73,1.707]
[1764789158261,0.65651378,904.54,902.73,1.707]
[1764789158561,0.65651378,904.53,902.73,1.707]
[1764789158763,0.65651378,904.52,902.73,1.707]
[1764789158959,0.65651378,904.51,902.73,1.707]
[1764789159157,0.65651378,904.5,902.73,1.707]
[1764789159457,0.65651378,904.49,902.73,1.707]
[1764789159662,0.65651378,904.48,902.73,1.707]
[1764789159862,0.65651378,904.47,902.73,1.707]
[1764789160060,0.65651378,904.46,902.73,1.707]
[1764789160263,0.65651378,904.45,902.73,1.707]
[1764789160464,0.65651378,904.44,902.73,1.707]
[1764789160659,0.65651378,904.43,902.73,1.707]
[1764789160863,0.65651378,904.42,902.73,1.707]
[1764789161064,0.65651378,904.41,902.73,1.707]
[1764789161262,0.65651378,904.4,902.73,1.707]
[1764789161465,0.65651378,904.39,902.73,1.707]
[1764789161661,0.65651378,904.38,902.73,1.707]
[1764789161872,0.65651378,904.37,902.73,1.707]
[1764789162073,0.65651378,904.36,902.73,1.707]
[1764789162272,0.65651378,904.35,902.73,1.707]
[1764789162469,0.65651378,904.34,902.73,1.707]
[1764789162673,0.65651378,904.33,902.73,1.707]
[1764789162878,0.65651378,904.32,902.73,1.707]
[1764789163074,0.65651378,904.31,902.73,1.707]
[1764789163274,0.65651378,904.3,902.73,1.707]
[1764789163474,0.65651378,904.29,902.73,1.707]
[1764789163673,0.65651378,904.28,902.73,1.707]
[1764789163873,0.65651378,904.27,902.73,1.707]
[1764789164074,0.65651378,904.26,902.73,1.707]
[1764789164270,0.65651378,904.25,902.73,1.707]
[1764789164476,0.65651378,904.24,902.73,1.707]
[1764789164775,0.65651378,904.23,902.73,1.707]
[1764789164971,0.65651378,904.22,902.73,1.707]
[1764789165172,0.65651378,904.21,902.73,1.707]
[1764789165373,0.65651378,904.2,902.73,1.707]
[1764789165577,0.65651378,904.19,902.73,1.707]
[1764789165778,0.65651378,904.18,902.73,1.707]
[1764789165978,1.09445929,904.58,902.73,1.707]
[1764789165979,0.65651378,904.17,902.73,1.707]
[1764789166179,0.65651378,904.16,902.73,1.707]
[1764789166374,0.65651378,904.15,902.73,1.707]
[1764789166580,0.65651378,904.14,902.74,1.14]
[1764789166876,0.65651378,904.13,902.74,1.14]
[1764789167079,1.09445929,904.58,902.74,1.14]
[1764789167280,0.65460665,904.57,902.74,1.14]
[1764789167579,0.65460665,904.56,902.74,1.14]
[1764789167777,0.65460665,904.55,902.74,1.14]
[1764789167978,1.09445929,904.58,902.74,1.14]
[1764789167979,0.65460665,904.54,902.74,1.14]
[1764789168178,0.65460665,904.53,902.74,1.14]
[1764789168478,0.65460665,904.52,902.74,1.14]
[1764789168676,0.65460665,904.51,902.74,1.14]
[1764789168977,0.65460665,904.5,902.74,1.14]
[1764789169278,0.65460665,904.49,902.74,1.14]
[1764789169578,0.65460665,904.48,902.74,1.14]
[1764789169778,0.65460665,904.47,902.74,1.14]
[1764789169978,0.65460665,904.46,902.74,1.14]
[1764789170175,0.65460665,904.45,902.74,1.14]
[1764789170378,0.65460665,904.44,902.74,1.14]
[1764789170574,1.09445929,904.46,902.74,1.14]
[1764789170575,0.65460665,904.43,902.74,1.14]
[1764789170880,1.09445929,904.47,902.74,1.14]
[1764789170881,0.65460665,904.42,902.74,1.14]
[1764789171074,0.65460665,904.41,902.74,1.14]
[1764789171278,0.65460665,904.4,902.74,1.14]
[1764789171475,0.65460665,904.39,902.74,1.14]
[1764789171675,0.65460665,904.38,902.74,1.14]
[1764789171875,0.65460665,904.37,902.74,1.14]
[1764789172076,0.65460665,904.36,902.74,1.14]
[1764789172280,0.65460665,904.35,902.74,1.14]
[1764789172477,0.65460665,904.34,902.74,1.14]
[1764789172680,0.65460665,904.33,902.74,1.14]
[1764789172881,0.65460665,904.32,902.74,1.14]
[1764789173184,0.65460665,904.31,902.74,1.14]
[1764789173477,0.65460665,904.3,902.74,1.14]
[1764789173681,0.65460665,904.29,902.74,1.14]
[1764789173879,0.65460665,904.28,902.74,1.14]
[1764789174177,0.65460665,904.27,902.74,1.14]
[1764789174481,0.65460665,904.26,902.74,1.14]
[1764789174678,0.65460665,904.25,902.74,1.14]
[1764789174877,0.65460665,904.24,902.74,1.14]
[1764789175076,0.65460665,904.23,902.74,1.14]
[1764789175280,0.65460665,904.22,902.74,1.14]
[1764789175480,0.65460665,904.21,902.74,1.14]
[1764789175676,0.65460665,904.2,902.74,1.14]
[1764789175880,0.65460665,904.19,902.74,1.14]
[1764789176077,0.65460665,904.18,902.74,1.14]
[1764789176277,0.65460665,904.17,902.74,1.14]
[1764789176481,0.65460665,904.16,902.74,1.14]
[1764789176678,0.65460665,904.15,902.74,1.14]
[1764789176877,0.65460665,904.14,902.74,1.14]
[1764789177082,0.65460665,904.13,902.74,1.14]
[1764789177282,0.65460665,904.12,902.74,1.14]
[1764789177582,0.65460665,904.11,902.74,1.14]
[1764789177781,0.65460665,904.1,902.74,1.14]
[1764789177979,0.65460665,904.09,902.74,1.14]
[1764789178279,0.65460665,904.08,902.74,1.14]
[1764789178477,0.65460665,904.07,902.74,1.14]
[1764789178682,0.65460665,904.06,902.74,1.14]
[1764789178982,0.65460665,904.05,902.74,1.14]
[1764789179179,0.65460665,904.04,902.74,1.14]
[1764789179379,0.65460665,904.03,902.74,1.14]
[1764789179580,0.65460665,904.02,902.74,1.14]
[1764789179783,0.65460665,904.01,902.74,1.14]
[1764789180085,0.65460665,904.0,902.74,1.14]
[1764789180284,0.65460665,903.99,902.74,1.14]
[1764789180481,0.65460665,903.98,902.74,1.14]
[1764789180785,0.65460665,903.97,902.74,1.14]
[1764789180984,0.65460665,903.96,902.74,1.14]
[1764789181285,1.09445929,904.41,902.74,1.14]
[1764789181585,0.65635943,904.4,902.74,1.14]
[1764789181784,0.65635943,904.39,902.74,1.14]
[1764789181985,0.65635943,904.38,902.74,1.14]
[1764789182183,0.65635943,904.37,902.74,1.14]
[1764789182385,0.65635943,904.36,902.74,1.14]
[1764789182583,0.65635943,904.35,902.74,1.14]
[1764789182788,0.65635943,904.34,902.74,1.14]
[1764789182984,0.65635943,904.33,902.74,1.14]
[1764789183185,0.65635943,904.32,902.74,1.14]
[1764789183384,0.65635943,904.31,902.74,1.14]
[1764789183682,0.65635943,904.3,902.74,1.14]
[1764789183885,0.65635943,904.29,902.74,1.14]
[1764789184083,0.65635943,904.28,902.74,1.14]
[1764789184283,0.65635943,904.27,902.74,1.14]
[1764789184485,0.65635943,904.26,902.74,1.14]
[1764789184789,1.09445929,904.31,902.74,1.14]
[1764789184790,0.65635943,904.25,902.74,1.14]
[1764789184990,0.65635943,904.24,902.74,1.14]
[1764789185188,0.65635943,904.23,902.74,1.14]
[1764789185387,0.65635943,904.22,902.74,1.14]
[1764789185587,0.65635943,904.21,902.73,1.707]
[1764789185793,0.65635943,904.2,902.73,1.707]
[1764789185985,0.65635943,904.19,902.73,1.707]
[1764789186187,0.65635943,904.18,902.73,1.707]
[1764789186490,0.65635943,904.17,902.73,1.707]
[1764789186685,0.65635943,904.16,902.73,1.707]
[1764789186887,0.65635943,904.15,902.73,1.707]
[1764789187090,0.65635943,904.14,902.73,1.707]
[1764789187292,0.65635943,904.13,902.73,1.707]
[1764789187489,0.65635943,904.12,902.73,1.707]
[1764789187688,0.65635943,904.11,902.74,1.291]
[1764789187891,0.65635943,904.1,902.74,1.291]
[1764789188088,0.65635943,904.09,902.74,1.291]
[1764789188390,0.65635943,904.08,902.74,1.291]
[1764789188592,0.65635943,904.07,902.74,1.291]
[1764789188788,0.65635943,904.06,902.74,1.291]
[1764789188990,0.65635943,904.05,902.74,1.291]
[1764789189193,0.65635943,904.04,902.74,1.291]
[1764789189390,0.65635943,904.03,902.74,1.291]
[1764789189591,0.65635943,904.02,902.74,1.291]
[1764789189790,0.65635943,904.01,902.74,1.291]
[1764789189994,0.65635943,904.0,902.74,1.291]
[1764789190193,0.65635943,903.99,902.74,1.291]
[1764789190389,0.65635943,903.98,902.74,1.291]
[1764789190595,0.65635943,903.97,902.74,1.291]
[1764789190894,0.65635943,903.96,902.74,1.291]
[1764789191093,0.65635943,903.95,902.74,1.291]
[1764789191290,0.65635943,903.94,902.74,1.291]
[1764789191589,0.65635943,903.93,902.74,1.291]
[1764789191794,0.65635943,903.92,902.74,1.291]
[1764789192094,0.65635943,903.91,902.74,1.291]
[1764789192290,0.65635943,903.9,902.74,1.291]
[1764789192495,0.65635943,903.89,902.74,1.291]
[1764789192696,0.65635943,903.88,902.74,1.291]
[1764789192893,0.65635943,903.87,902.74,1.291]
[1764789193097,0.65635943,903.86,902.74,1.291]
[1764789193292,0.65635943,903.85,902.74,1.291]
[1764789193493,0.65635943,903.84,902.74,1.291]
[1764789193694,0.65635943,903.83,902.74,1.291]
[1764789193893,0.65635943,903.82,902.74,1.291]
[1764789194093,0.65635943,903.81,902.74,1.291]
[1764789194294,0.65635943,903.8,902.74,1.291]
[1764789194596,0.65635943,903.79,902.74,1.291]
[1764789194797,0.65635943,903.78,902.74,1.291]
[1764789195094,0.65635943,903.77,902.74,1.291]
[1764789195297,0.65635943,903.76,902.74,1.291]
[1764789195498,0.65635943,903.75,902.74,1.291]
[1764789195798,0.65635943,903.74,902.74,1.291]
[1764789195999,0.65635943,903.73,902.74,1.291]
[1764789196198,0.65635943,903.72,902.74,1.291]
[1764789196392,0.65635943,903.71,902.74,1.291]
[1764789196597,0.65635943,903.7,902.74,1.291]
[1764789196793,0.65635943,903.69,902.74,1.291]
[1764789197093,0.65635943,903.68,902.74,1.291]
[1764789197394,0.65635943,903.67,902.74,1.291]
[1764789197594,0.65635943,903.66,902.74,1.291]
[1764789197799,0.65635943,903.65,902.74,1.291]
[1764789197995,0.65635943,903.64,902.74,1.291]
[1764789198196,0.65635943,903.63,902.74,1.291]
[1764789198499,1.09445929,904.11,902.74,1.291]
[1764789198698,0.65348509,904.1,902.74,1.291]
[1764789198899,0.65348509,904.09,902.74,1.291]
[1764789199099,0.65348509,904.08,902.74,1.291]
[1764789199299,0.65348509,904.07,902.74,1.291]
[1764789199598,0.65348509,904.06,902.74,1.291]
[1764789199795,0.65348509,904.05,902.74,1.291]
[1764789199999,0.65348509,904.04,902.74,1.291]
[1764789200199,0.65348509,904.03,902.74,1.291]
[1764789200499,0.65348509,904.02,902.74,1.291]
[1764789200799,0.65348509,904.01,902.74,1.291]
[1764789200996,0.65348509,904.0,902.74,1.291]
[1764789201201,0.65348509,903.99,902.74,1.291]
[1764789201401,0.65348509,903.98,902.74,1.291]
[1764789201600,0.65348509,903.97,902.74,1.291]
[1764789201800,0.65348509,903.96,902.74,1.291]
[1764789201996,0.65348509,903.95,902.74,1.291]
[1764789202195,0.65348509,903.94,902.74,1.291]
[1764789202395,0.65348509,903.93,902.74,1.291]
[1764789202599,0.65348509,903.92,902.74,1.291]
[1764789202800,0.65348509,903.91,902.74,1.291]
[1764789202999,1.09445929,904.18,902.74,1.291]
[1764789203000,0.65348509,903.9,902.74,1.291]
[1764789203200,0.65348509,903.89,902.74,1.291]
[1764789203401,0.65348509,903.88,902.74,1.291]
[1764789203604,0.65348509,903.87,902.74,1.291]
[1764789203902,0.65348509,903.86,902.74,1.291]
[1764789204103,0.65348509,903.85,902.74,1.291]
[1764789204304,0.65348509,903.84,902.74,1.291]
[1764789204500,0.65348509,903.83,902.74,1.291]
[1764789204705,0.65348509,903.82,902.74,1.291]
[1764789204906,0.65348509,903.81,902.74,1.291]
[1764789205107,0.65348509,903.8,902.74,1.291]
[1764789205408,5.7542055,904.23,902.74,1.291]
[1764789205704,0.65397681,904.22,902.74,1.291]
[1764789206007,5.7542055,904.23,902.74,1.291]
[1764789206008,0.65397681,904.21,902.74,1.291]
[1764789206207,0.65397681,904.2,902.75,1.589]
[1764789206502,0.65397681,904.19,902.75,1.589]
[1764789206707,0.65397681,904.18,902.75,1.589]
[1764789207006,0.65397681,904.17,902.75,1.589]
[1764789207203,0.65397681,904.16,902.75,1.589]
[1764789207502,0.65397681,904.15,902.75,1.589]
[1764789207806,0.65397681,904.14,902.75,1.589]
[1764789208006,0.65397681,904.13,902.75,1.589]
[1764789208307,0.65397681,904.12,902.75,1.589]
[1764789208507,0.65397681,904.11,902.75,1.589]
[1764789208707,0.65397681,904.1,902.75,1.589]
[1764789208901,0.65397681,904.09,902.75,1.589]
[1764789209101,0.65397681,904.08,902.75,1.589]
[1764789209305,0.65397681,904.07,902.75,1.589]
[1764789209507,0.65397681,904.06,902.75,1.589]
[1764789209703,0.65397681,904.05,902.75,1.589]
[1764789209906,1.09445929,903.99,902.75,1.589]
[1764789210109,0.65397681,903.98,902.75,1.589]
[1764789210309,0.65397681,903.97,902.75,1.589]
[1764789210503,0.65397681,903.96,902.75,1.589]
[1764789210707,0.65397681,903.95,902.75,1.589]
[1764789210904,0.65397681,903.94,902.75,1.589]
[1764789211207,0.65397681,903.93,902.75,1.589]
[1764789211404,0.65397681,903.92,902.75,1.589]
[1764789211608,0.65397681,903.91,902.75,1.589]
[1764789211803,1.09445929,903.99,902.75,1.589]
[1764789211804,0.65397681,903.9,902.75,1.589]
[1764789212105,0.65397681,903.89,902.75,1.589]
[1764789212303,0.65397681,903.88,902.75,1.589]
[1764789212507,0.65397681,903.87,902.75,1.589]
[1764789212708,0.65397681,903.86,902.75,1.589]
[1764789212908,0.65397681,903.85,902.75,1.589]
[1764789213105,0.65397681,903.84,902.75,1.589]
[1764789213309,1.09445929,903.98,902.75,1.589]
[1764789213310,0.65397681,903.83,902.75,1.589]
[1764789213506,0.65397681,903.82,902.75,1.589]
[1764789213704,0.65397681,903.81,902.75,1.589]
[1764789213908,0.65397681,903.8,902.75,1.589]
[1764789214110,0.65397681,903.79,902.75,1.589]